lending/lending_fUSD_20241025
["ID","MTS","AMOUNT","RATE_DAILY","PERIOD"]
[340820319,1729878637943,-5000.0,0.00043053,14]
[340820320,1729878637954,-5000.0,0.00043053,14]
[340820321,1729878637963,-5000.0,0.00043053,14]
[340820322,1729878637973,-2415.341776,0.00043053,14]
[340820323,1729878637984,-200.0,0.00043053,7]
[340820324,1729878637994,-200.0,0.00043484,7]
[340820325,1729878638005,-289.47,0.00043783,2]
[340820326,1729878638015,-475.63,0.00043964,2]
[340820327,1729878638025,-250.0,0.00044281,2]
[340820328,1729878638034,-250.0,0.00044418,120]
[340820329,1729878638044,-3103.17,0.00044558,2]
[340820330,1729878638055,-500.0,0.000447,7]
[340820331,1729878638067,-150.03,0.00044889,2]
[340820332,1729878638076,-1000.0,0.00045,2]
[340820333,1729878638085,-250.0,0.00045115,120]
[340820334,1729878638094,-1093.18511982,0.00045374,9]
[340820335,1729878638102,-1596.22832817,0.00045384,15]
[340820336,1729878638111,-150.0,0.00045557,2]
[340820337,1729878638120,-6924.69,0.00045602,2]
[340820339,1729878638129,-475.63,0.00046228,2]
[340820341,1729878638138,-158.85,0.00046806,120]
[340820343,1729878638147,-1093.18511982,0.00047398,10]
[340820345,1729878638156,-325.27,0.00047408,2]
[340820347,1729878638164,-1093.18511982,0.00047425,10]
[340820348,1729878638174,-7641.95,0.00047435,2]
[340820349,1729878638184,-1093.18511982,0.00047477,10]
[340820350,1729878638194,-1596.22832817,0.00047824,15]
[340820351,1729878638204,-164.21,0.00048208,2]
[340820352,1729878638213,-475.63,0.00048492,2]
[340820353,1729878638223,-157.0,0.00048868,2]
[340820354,1729878638231,-1014.15890552,0.0005,14]
[340820355,1729878638241,-164.21,0.00050254,2]
[340820356,1729878638251,-1596.22832817,0.00050263,15]
[340820357,1729878638260,-475.63,0.00050756,2]
[340820358,1729878638269,-1093.18511982,0.00051111,11]
[340820359,1729878638279,-1000.0,0.00051131,120]
[340820360,1729878638289,-159.14,0.00051313,2]
[340820361,1729878638300,-8745.48095856,0.0005188,11]
[340820362,1729878638309,-279.6369032,0.0005189,10]
[340820363,1729878638318,-111022.4642889,0.000519,120]
[340820364,1729878638328,-200.0,0.000519,18]
[340820365,1729878638337,-150.0,0.000523,2]
[340820366,1729878638347,-11522.0,0.000523,120]
[340820367,1729878638355,-164.21,0.000523,2]
[340820368,1729878638366,-1596.22832817,0.00052703,15]
[340820369,1729878638375,-475.63,0.0005302,2]
[340820370,1729878638384,-164.21,0.00054346,2]
[340820371,1729878638394,-250.0,0.00054795,120]
[340820372,1729878638403,-250.0,0.00054795,120]
[340820373,1729878638413,-250.0,0.00054795,120]
[340820374,1729878638422,-250.0,0.00054795,120]
[340820375,1729878638431,-250.0,0.00054795,120]
[340820376,1729878638440,-250.0,0.00054795,120]
[340820377,1729878638449,-250.0,0.00054795,120]
[340820378,1729878638458,-250.0,0.00054795,120]
[340820379,1729878638468,-250.0,0.00054795,120]
[340820380,1729878638477,-300.339063,0.00054795,120]
[340820381,1729878638486,-150.0,0.000549,7]
[340820382,1729878638495,-3000.0,0.000551,90]
[340820383,1729878638504,-1596.22832817,0.00055142,15]
[340820384,1729878638513,-475.63,0.00055284,2]
[340820385,1729878638523,-645.0,0.000554,12]
[340820386,1729878638532,-164.21,0.00056392,2]
[340820387,1729878638541,-1000.0,0.00057523,120]
[340820388,1729878638552,-7500.0,0.00057534,120]
[340820389,1729878638560,-475.63,0.00057548,2]
[340820390,1729878638570,-1596.22832817,0.00057582,15]
[340820391,1729878638578,-3000.0,0.000578,90]
[340820392,1729878638587,-170.124,0.00058087,2]
[340820393,1729878638596,-279.6369032,0.00058184,12]
[340820394,1729878638607,-164.21,0.00058438,2]
[340820395,1729878638616,-19692.0,0.0005966,30]
[340820396,1729878638626,-475.63,0.00059812,2]
[340820397,1729878638635,-500.0,0.000599,21]
[340820398,1729878638643,-197.97257303,0.0005999,7]
[340820399,1729878638654,-12499.99,0.0006,120]
[340820400,1729878638663,-892.32,0.0006,120]
[340820401,1729878638672,-1241.47,0.0006,120]
[340820402,1729878638681,-3651.37,0.0006,120]
[340820403,1729878638690,-2097.71,0.0006,120]
[340820404,1729878638700,-2088.83666171,0.0006,15]
[340820405,1729878638710,-5785.59,0.0006,120]
[340820406,1729878638719,-7897.27,0.0006,120]
[340820407,1729878638728,-1596.22832817,0.00060021,15]
[340820408,1729878638850,-500.0,0.00060043,120]
[340820409,1729878638859,-500.0,0.00060186,120]
[340820410,1729878638868,-500.0,0.00060193,15]
[340820411,1729878638877,-500.0,0.00060206,120]
[340820412,1729878638887,-500.0,0.00060214,120]
[340820413,1729878638895,-500.0,0.00060224,120]
[340820414,1729878638905,-279.6369032,0.00060243,12]
[340820415,1729878638914,-559.2738064,0.00060253,12]
[340820416,1729878638923,-154.117876,0.00060253,120]
[340820417,1729878638932,-151.0,0.00060253,120]
[340820418,1729878638941,-151.0,0.00060253,120]
[340820419,1729878638950,-151.0,0.00060253,120]
[340820420,1729878638959,-151.0,0.00060253,120]
[340820421,1729878638968,-205.255476,0.00060253,120]
[340820422,1729878638977,-151.0,0.00060253,120]
[340820423,1729878638986,-152.164,0.00060253,120]
[340820424,1729878638995,-151.0,0.00060253,30]
[340820425,1729878639004,-151.0,0.00060253,120]
[340820426,1729878639013,-290.701424,0.00060253,120]
[340820427,1729878639022,-151.0,0.00060253,120]
[340820428,1729878639031,-7500.0,0.00060262,120]
[340820429,1729878639040,-559.2738064,0.00060262,12]
[340820430,1729878639051,-559.2738064,0.00060263,12]
[340820431,1729878639060,-3124.0383718,0.00060272,120]
[340820432,1729878639069,-151.0,0.00060272,120]
[340820433,1729878639078,-151.0,0.00060272,120]
[340820434,1729878639087,-500.0,0.00060273,120]
[340820435,1729878639096,-500.0,0.00060273,120]
[340820436,1729878639104,-500.0,0.00060273,120]
[340820437,1729878639113,-500.0,0.00060273,120]
[340820438,1729878639123,-500.0,0.00060273,120]
[340820439,1729878639132,-500.0,0.00060273,120]
[340820440,1729878639141,-500.0,0.00060273,120]
[340820441,1729878639150,-500.0,0.00060273,120]
[340820442,1729878639159,-500.0,0.00060273,120]
[340820443,1729878639168,-704.14,0.00060273,120]
[340820444,1729878639177,-704.14,0.00060273,120]
[340820445,1729878639187,-704.14,0.00060273,120]
[340820446,1729878639195,-591.29587392,0.00060273,120]
[340820447,1729878639203,-156.732009,0.00060273,120]
[340820448,1729878639212,-500.0,0.00060273,120]
[340820449,1729878639222,-500.0,0.00060273,120]
[340820450,1729878639231,-151.0,0.00060273,120]
[340820451,1729878639241,-500.0,0.00060273,120]
[340820452,1729878639250,-500.0,0.00060273,120]
[340820453,1729878639259,-500.0,0.00060273,120]
[340820454,1729878639269,-500.0,0.00060273,120]
[340820455,1729878639279,-151.0,0.00060273,120]
[340820456,1729878639288,-500.0,0.00060273,120]
[340820457,1729878639299,-500.0,0.00060273,120]
[340820458,1729878639309,-500.0,0.00060273,120]
[340820459,1729878639319,-500.0,0.00060273,120]
[340820460,1729878639328,-500.0,0.00060273,120]
[340820461,1729878639338,-500.0,0.00060273,120]
[340820462,1729878639347,-232.76513978,0.00060273,120]
[340820463,1729878639356,-500.0,0.00060273,120]
[340820464,1729878639365,-500.0,0.00060273,120]
[340820465,1729878639374,-500.0,0.00060273,120]
[340820466,1729878639383,-500.0,0.00060273,120]
[340820467,1729878639392,-500.0,0.00060273,120]
[340820468,1729878639401,-500.0,0.00060273,120]
[340820469,1729878639410,-633.52,0.00060273,120]
[340820470,1729878639419,-633.52,0.00060273,120]
[340820471,1729878639428,-633.52,0.00060273,120]
[340820472,1729878639437,-633.52,0.00060273,120]
[340820473,1729878639447,-500.0,0.00060273,120]
[340820474,1729878639456,-500.0,0.00060273,120]
[340820475,1729878639465,-500.0,0.00060273,120]
[340820476,1729878639475,-500.0,0.00060273,120]
[340820477,1729878639483,-500.0,0.00060273,120]
[340820478,1729878639491,-496.91018,0.00060273,120]
[340820479,1729878639500,-289.99507606,0.00060273,120]
[340820480,1729878639510,-497.80040001,0.00060273,120]
[340820481,1729878639519,-500.0,0.00060273,120]
[340820482,1729878639528,-500.0,0.00060273,120]
[340820483,1729878639537,-500.0,0.00060273,120]
[340820484,1729878639548,-321.14692041,0.00060273,120]
[340820485,1729878639558,-500.0,0.00060273,120]
[340820486,1729878639567,-500.0,0.00060273,120]
[340820487,1729878639576,-499.415085,0.00060273,120]
[340820488,1729878639585,-500.0,0.00060273,120]
[340820489,1729878639594,-500.0,0.00060273,120]
[340820490,1729878639604,-500.0,0.00060273,120]
[340820491,1729878639617,-340.78547134,0.00060273,120]
[340820492,1729878639626,-500.0,0.00060273,120]
[340820493,1729878639635,-213.97754318,0.00060273,120]
[340820494,1729878639645,-500.0,0.00060273,120]
[340820495,1729878639654,-500.0,0.00060273,120]
[340820496,1729878639663,-500.0,0.00060273,120]
[340820497,1729878639672,-256.15687466,0.00060273,120]
[340820498,1729878639683,-500.0,0.00060273,120]
[340820499,1729878639691,-500.0,0.00060273,120]
[340820500,1729878639701,-500.0,0.00060273,120]
[340820501,1729878639710,-222.62407103,0.00060273,120]
[340820502,1729878639719,-536.14,0.00060273,120]
[340820503,1729878639727,-536.14,0.00060273,120]
[340820504,1729878639736,-536.14,0.00060273,120]
[340820505,1729878639745,-536.14,0.00060273,120]
[340820506,1729878639754,-500.0,0.00060273,120]
[340820507,1729878639763,-500.0,0.00060273,120]
[340820508,1729878639771,-500.0,0.00060273,120]
[340820509,1729878639780,-500.0,0.00060273,120]
[340820510,1729878639789,-500.0,0.00060273,120]
[340820511,1729878639801,-500.0,0.00060273,120]
[340820512,1729878639809,-500.0,0.00060273,120]
[340820513,1729878639818,-528.15,0.00060273,120]
[340820514,1729878639827,-528.15,0.00060273,120]
[340820515,1729878639836,-528.15,0.00060273,120]
[340820516,1729878639846,-528.15,0.00060273,120]
[340820517,1729878639856,-528.95,0.00060273,120]
[340820518,1729878639865,-528.95,0.00060273,120]
[340820519,1729878639874,-528.95,0.00060273,120]
[340820520,1729878639883,-235.45376147,0.00060273,120]
[340820521,1729878639892,-500.0,0.00060273,120]
[340820522,1729878639901,-500.0,0.00060273,120]
[340820523,1729878639910,-258.35975358,0.00060273,120]
[340820524,1729878639919,-500.0,0.00060273,120]
[340820525,1729878639928,-500.0,0.00060273,120]
[340820527,1729878639937,-500.0,0.00060273,120]
[340820529,1729878639947,-151.0,0.00060273,120]
[340820531,1729878639955,-500.0,0.00060273,120]
[340820533,1729878639964,-500.0,0.00060273,120]
[340820534,1729878639973,-500.0,0.00060273,120]
[340820536,1729878639982,-500.0,0.00060273,120]
[340820538,1729878639991,-496.73054,0.00060273,120]
[340820540,1729878640001,-500.0,0.00060273,120]
[340820542,1729878640010,-505.97617959,0.00060273,120]
[340820544,1729878640019,-488.53616679,0.00060273,120]
[340820546,1729878640028,-267.750922,0.00060273,120]
[340820548,1729878640039,-500.0,0.00060273,7]
[340820550,1729878640049,-500.0,0.00060273,7]
[340820552,1729878640057,-500.0,0.00060273,7]
[340820554,1729878640067,-500.0,0.00060273,120]
[340820556,1729878640076,-497.94012,0.00060273,120]
[340820558,1729878640085,-500.0,0.00060273,120]
[340820560,1729878640094,-500.0,0.00060273,120]
[340820562,1729878640103,-500.0,0.00060273,120]
[340820564,1729878640112,-500.0,0.00060273,120]
[340820566,1729878640121,-500.0,0.00060273,120]
[340820568,1729878640130,-500.0,0.00060273,120]
[340820570,1729878640139,-500.0,0.00060273,120]
[340820572,1729878640149,-500.0,0.00060273,120]
[340820574,1729878640158,-500.0,0.00060273,120]
[340820576,1729878640168,-500.0,0.00060273,120]
[340820578,1729878640177,-534.95,0.00060273,120]
[340820580,1729878640187,-534.95,0.00060273,120]
[340820582,1729878640196,-534.95,0.00060273,120]
[340820584,1729878640205,-534.95,0.00060273,120]
[340820586,1729878640214,-500.0,0.00060273,120]
[340820587,1729878640223,-500.0,0.00060273,120]
[340820589,1729878640232,-500.0,0.00060273,120]
[340820591,1729878640241,-506.33288084,0.00060273,120]
[340820593,1729878640251,-569.66,0.00060273,120]
[340820595,1729878640260,-569.66,0.00060273,120]
[340820597,1729878640269,-569.66,0.00060273,120]
[340820599,1729878640279,-500.0,0.00060273,120]
[340820601,1729878640288,-500.0,0.00060273,120]
[340820603,1729878640297,-500.0,0.00060273,120]
[340820605,1729878640307,-500.0,0.00060273,120]
[340820607,1729878640316,-500.0,0.00060273,120]
[340820609,1729878640326,-500.0,0.00060273,120]
[340820611,1729878640336,-1073.91,0.00060273,120]
[340820613,1729878640345,-1073.91,0.00060273,120]
[340820615,1729878640355,-1073.91,0.00060273,120]
[340820617,1729878640365,-500.0,0.00060273,120]
[340820619,1729878640374,-500.0,0.00060273,120]
[340820621,1729878640384,-500.0,0.00060273,120]
[340820623,1729878640393,-500.0,0.00060273,120]
[340820625,1729878640402,-500.0,0.00060273,120]
[340820627,1729878640412,-500.0,0.00060273,120]
[340820629,1729878640422,-500.0,0.00060273,120]
[340820631,1729878640431,-500.0,0.00060273,120]
[340820633,1729878640440,-500.0,0.00060273,120]
[340820635,1729878640450,-542.50877461,0.00060273,120]
[340820637,1729878640459,-500.0,0.00060273,120]
[340820639,1729878640468,-500.0,0.00060273,120]
[340820641,1729878640477,-500.0,0.00060273,120]
[340820643,1729878640487,-500.0,0.00060273,120]
[340820645,1729878640496,-500.0,0.00060273,120]
[340820647,1729878640505,-500.0,0.00060273,120]
[340820649,1729878640514,-500.0,0.00060273,120]
[340820651,1729878640524,-500.0,0.00060273,120]
[340820653,1729878640533,-500.0,0.00060273,120]
[340820655,1729878640543,-500.0,0.00060273,120]
[340820657,1729878640557,-500.0,0.00060273,55]
[340820659,1729878640567,-500.0,0.00060273,55]
[340820661,1729878640576,-500.0,0.00060273,55]
[340820662,1729878640586,-500.0,0.00060273,55]
[340820664,1729878640594,-500.0,0.00060273,120]
[340820666,1729878640604,-500.0,0.00060273,120]
[340820668,1729878640618,-500.0,0.00060273,120]
[340820670,1729878640628,-500.0,0.00060273,120]
[340820672,1729878640638,-500.0,0.00060273,120]
[340820674,1729878640647,-500.0,0.00060273,120]
[340820676,1729878640656,-500.0,0.00060273,120]
[340820678,1729878640665,-500.0,0.00060273,120]
[340820680,1729878640674,-500.0,0.00060273,120]
[340820682,1729878640684,-500.0,0.00060273,120]
[340820684,1729878640693,-500.0,0.00060273,120]
[340820685,1729878640702,-500.0,0.00060273,120]
[340820687,1729878640711,-501.77160792,0.00060273,120]
[340820689,1729878640721,-205.364704,0.00060273,120]
[340820691,1729878640730,-151.0,0.00060273,120]
[340820693,1729878640740,-500.0,0.00060273,120]
[340820695,1729878640749,-500.0,0.00060273,120]
[340820697,1729878640759,-500.0,0.00060273,120]
[340820699,1729878640768,-500.0,0.00060273,120]
[340820701,1729878640778,-500.0,0.00060273,120]
[340820703,1729878640787,-500.0,0.00060273,120]
[340820705,1729878640796,-151.0,0.00060273,120]
[340820707,1729878640806,-639.74,0.00060273,120]
[340820709,1729878640815,-639.74,0.00060273,120]
[340820711,1729878640824,-639.74,0.00060273,120]
[340820713,1729878640833,-500.0,0.00060273,120]
[340820715,1729878640842,-500.0,0.00060273,120]
[340820717,1729878640852,-500.0,0.00060273,120]
[340820718,1729878640861,-500.0,0.00060273,120]
[340820720,1729878640871,-500.0,0.00060273,120]
[340820722,1729878640881,-500.0,0.00060273,120]
[340820724,1729878640891,-500.0,0.00060273,120]
[340820726,1729878640900,-499.99753925,0.00060273,120]
[340820728,1729878640909,-551.87,0.00060273,120]
[340820730,1729878640918,-1441.93,0.00060273,120]
[340820732,1729878640928,-551.87,0.00060273,120]
[340820734,1729878640938,-1441.93,0.00060273,120]
[340820736,1729878640947,-551.87,0.00060273,120]
[340820738,1729878640956,-1441.93,0.00060273,120]
[340820740,1729878640965,-1441.93,0.00060273,120]
[340820742,1729878640975,-920.23,0.00060273,120]
[340820744,1729878640984,-920.23,0.00060273,120]
[340820746,1729878640993,-920.23,0.00060273,120]
[340820748,1729878641002,-920.23,0.00060273,120]
[340820750,1729878641011,-500.0,0.00060273,120]
[340820751,1729878641019,-500.0,0.00060273,120]
[340820753,1729878641029,-500.0,0.00060273,120]
[340820755,1729878641038,-500.0,0.00060273,120]
[340820757,1729878641046,-500.0,0.00060273,120]
[340820759,1729878641055,-485.48939105,0.00060273,120]
[340820761,1729878641065,-500.0,0.00060273,120]
[340820763,1729878641075,-500.0,0.00060273,120]
[340820765,1729878641084,-500.0,0.00060273,120]
[340820766,1729878641093,-500.0,0.00060273,120]
[340820768,1729878641102,-385.58932487,0.00060273,120]
[340820770,1729878641112,-499.475025,0.00060273,120]
[340820772,1729878641121,-297.16719698,0.00060273,120]
[340820774,1729878641130,-151.0,0.00060273,120]
[340820776,1729878641139,-500.0,0.00060273,120]
[340820778,1729878641148,-500.0,0.00060273,120]
[340820780,1729878641158,-500.0,0.00060273,120]
[340820782,1729878641167,-500.0,0.00060273,120]
[340820784,1729878641176,-17021.96,0.00060273,120]
[340820786,1729878641186,-17021.96,0.00060273,120]
[340820788,1729878641195,-17021.96,0.00060273,120]
[340820790,1729878641204,-479.12896302,0.00060273,120]
[340820792,1729878641212,-500.0,0.00060273,120]
[340820794,1729878641222,-778.83,0.00060273,120]
[340820796,1729878641231,-500.0,0.00060273,120]
[340820798,1729878641240,-778.83,0.00060273,120]
[340820799,1729878641250,-500.0,0.00060273,120]
[340820801,1729878641259,-778.83,0.00060273,120]
[340820803,1729878641269,-363.48026115,0.00060273,120]
[340820805,1729878641278,-985.41,0.00060273,120]
[340820807,1729878641287,-985.41,0.00060273,120]
[340820809,1729878641296,-985.41,0.00060273,120]
[340820811,1729878641306,-500.0,0.00060273,120]
[340820813,1729878641315,-500.0,0.00060273,120]
[340820815,1729878641325,-235.45851387,0.00060273,120]
[340820817,1729878641335,-500.0,0.00060273,120]
[340820819,1729878641345,-500.0,0.00060273,120]
[340820821,1729878641355,-500.0,0.00060273,120]
[340820832,1729878641364,-555.79221386,0.00060273,120]
[340820836,1729878641475,-500.0,0.00060273,120]
[340820838,1729878641485,-500.0,0.00060273,120]
[340820840,1729878641494,-500.0,0.00060273,120]
[340820842,1729878641504,-2826.61264847,0.00060273,120]
[340820844,1729878641514,-500.0,0.00060273,120]
[340820846,1729878641523,-500.0,0.00060273,120]
[340820848,1729878641533,-518.02,0.00060273,120]
[340820850,1729878641543,-518.02,0.00060273,120]
[340820852,1729878641552,-518.02,0.00060273,120]
[340820854,1729878641561,-518.02,0.00060273,120]
[340820856,1729878641571,-500.0,0.00060273,120]
[340820858,1729878641581,-500.0,0.00060273,120]
[340820860,1729878641590,-500.0,0.00060273,120]
[340820862,1729878641599,-500.0,0.00060273,120]
[340820864,1729878641611,-500.0,0.00060273,120]
[340820866,1729878641621,-204.41325327,0.00060273,120]
[340820868,1729878641630,-500.0,0.00060273,120]
[340820869,1729878641639,-500.0,0.00060273,120]
[340820871,1729878641650,-500.0,0.00060273,120]
[340820873,1729878641659,-1261.3,0.00060273,120]
[340820875,1729878641669,-1261.3,0.00060273,120]
[340820877,1729878641678,-1261.3,0.00060273,120]
[340820879,1729878641689,-625.67977798,0.00060273,120]
[340820881,1729878641699,-500.0,0.00060273,120]
[340820883,1729878641708,-500.0,0.00060273,120]
[340820885,1729878641717,-500.0,0.00060273,120]
[340820887,1729878641727,-500.0,0.00060273,120]
[340820889,1729878641736,-500.0,0.00060273,21]
[340820891,1729878641746,-500.0,0.00060273,21]
[340820893,1729878641755,-500.0,0.00060273,21]
[340820895,1729878641764,-611.82234543,0.00060273,120]
[340820897,1729878641775,-532.75,0.00060273,120]
[340820899,1729878641784,-532.75,0.00060273,120]
[340820901,1729878641794,-532.75,0.00060273,120]
[340820903,1729878641803,-532.75,0.00060273,120]
[340820905,1729878641812,-500.0,0.00060273,120]
[340820907,1729878641822,-500.0,0.00060273,120]
[340820909,1729878641831,-500.0,0.00060273,120]
[340820911,1729878641840,-500.0,0.00060273,120]
[340820913,1729878641850,-500.0,0.00060273,120]
[340820915,1729878641861,-500.0,0.00060273,120]
[340820917,1729878641870,-500.0,0.00060273,120]
[340820919,1729878641880,-500.0,0.00060273,120]
[340820921,1729878641889,-439.37691756,0.00060273,120]
[340820923,1729878641899,-500.0,0.00060273,120]
[340820925,1729878641908,-500.0,0.00060273,120]
[340820927,1729878641918,-500.0,0.00060273,120]
[340820929,1729878641927,-500.0,0.00060273,120]
[340820931,1729878641937,-500.0,0.00060273,120]
[340820932,1729878641946,-500.0,0.00060273,120]
[340820934,1729878641955,-562.91,0.00060273,120]
[340820936,1729878641965,-562.91,0.00060273,120]
[340820938,1729878641975,-562.91,0.00060273,120]
[340820940,1729878641984,-3752.27,0.00060273,120]
[340820942,1729878641993,-562.91,0.00060273,120]
[340820944,1729878642003,-3752.27,0.00060273,120]
[340820946,1729878642012,-3752.27,0.00060273,120]
[340820949,1729878642023,-3752.27,0.00060273,120]
[340820950,1729878642033,-3752.27,0.00060273,120]
[340820952,1729878642043,-3752.27,0.00060273,120]
[340820954,1729878642052,-500.0,0.00060273,120]
[340820956,1729878642061,-500.0,0.00060273,120]
[340820958,1729878642070,-500.0,0.00060273,120]
[340820960,1729878642079,-500.0,0.00060273,120]
[340820962,1729878642089,-585.39,0.00060273,120]
[340820964,1729878642098,-585.39,0.00060273,120]
[340820966,1729878642107,-585.39,0.00060273,120]
[340820968,1729878642116,-810.15,0.00060273,120]
[340820970,1729878642126,-500.0,0.00060273,120]
[340820972,1729878642135,-810.15,0.00060273,120]
[340820974,1729878642144,-500.0,0.00060273,120]
[340820976,1729878642153,-810.15,0.00060273,120]
[340820978,1729878642162,-500.0,0.00060273,120]
[340820980,1729878642171,-810.15,0.00060273,120]
[340820982,1729878642182,-500.0,0.00060273,120]
[340820984,1729878642191,-500.0,0.00060273,120]
[340820986,1729878642201,-500.0,0.00060273,120]
[340820988,1729878642210,-647.94,0.00060273,120]
[340820990,1729878642219,-647.94,0.00060273,120]
[340820992,1729878642229,-647.94,0.00060273,120]
[340820994,1729878642238,-647.94,0.00060273,120]
[340820996,1729878642248,-647.94,0.00060273,120]
[340820998,1729878642257,-647.94,0.00060273,120]
[340821000,1729878642266,-500.0,0.00060273,120]
[340821003,1729878642276,-500.0,0.00060273,120]
[340821005,1729878642285,-500.0,0.00060273,120]
[340821006,1729878642294,-500.0,0.00060273,120]
[340821008,1729878642311,-500.0,0.00060273,120]
[340821010,1729878642320,-500.0,0.00060273,120]
[340821012,1729878642330,-500.0,0.00060273,120]
[340821015,1729878642339,-500.0,0.00060273,120]
[340821017,1729878642351,-500.0,0.00060273,120]
[340821020,1729878642360,-500.0,0.00060273,120]
[340821021,1729878642370,-500.0,0.00060273,120]
[340821023,1729878642381,-524.58144381,0.00060273,120]
[340821025,1729878642393,-555.76,0.00060273,120]
[340821027,1729878642403,-555.76,0.00060273,120]
[340821029,1729878642412,-555.76,0.00060273,120]
[340821031,1729878642422,-151.0,0.00060273,120]
[340821033,1729878642431,-504.12058176,0.00060273,120]
[340821035,1729878642440,-500.0,0.00060273,120]
[340821037,1729878642449,-500.0,0.00060273,120]
[340821039,1729878642457,-500.0,0.00060273,120]
[340821041,1729878642467,-500.0,0.00060273,120]
[340821043,1729878642476,-500.0,0.00060273,120]
[340821045,1729878642486,-500.0,0.00060273,120]
[340821047,1729878642495,-500.0,0.00060273,120]
[340821049,1729878642504,-500.0,0.00060273,120]
[340821051,1729878642513,-500.0,0.00060273,120]
[340821053,1729878642522,-500.0,0.00060273,120]
[340821055,1729878642531,-500.0,0.00060273,120]
[340821057,1729878642540,-500.0,0.00060273,120]
[340821059,1729878642549,-499.89308435,0.00060273,120]
[340821061,1729878642558,-476.0811765,0.00060273,120]
[340821063,1729878642567,-500.0,0.00060273,120]
[340821065,1729878642576,-500.0,0.00060273,120]
[340821067,1729878642586,-899.73,0.00060273,120]
[340821069,1729878642595,-899.73,0.00060273,120]
[340821071,1729878642604,-899.73,0.00060273,120]
[340821073,1729878642616,-509.31770191,0.00060273,120]
[340821075,1729878642625,-899.73,0.00060273,120]
[340821077,1729878642634,-899.73,0.00060273,120]
[340821079,1729878642643,-899.73,0.00060273,120]
[340821081,1729878642651,-500.0,0.00060273,120]
[340821082,1729878642661,-500.0,0.00060273,120]
[340821084,1729878642671,-645.84567296,0.00060273,120]
[340821086,1729878642680,-500.0,0.00060273,120]
[340821088,1729878642689,-500.0,0.00060273,120]
[340821090,1729878642699,-500.0,0.00060273,120]
[340821092,1729878642708,-1000.0,0.00060273,120]
[340821094,1729878642717,-500.0,0.00060273,120]
[340821096,1729878642726,-1000.0,0.00060273,120]
[340821098,1729878642735,-500.0,0.00060273,120]
[340821100,1729878642744,-1000.0,0.00060273,120]
[340821102,1729878642753,-500.0,0.00060273,120]
[340821104,1729878642763,-1000.0,0.00060273,120]
[340821106,1729878642772,-500.0,0.00060273,7]
[340821107,1729878642781,-729.17,0.00060273,120]
[340821109,1729878642790,-500.0,0.00060273,7]
[340821111,1729878642800,-500.0,0.00060273,120]
[340821113,1729878642810,-729.17,0.00060273,120]
[340821115,1729878642819,-729.17,0.00060273,120]
[340821117,1729878642828,-729.17,0.00060273,120]
[340821119,1729878642838,-500.0,0.00060273,120]
[340821121,1729878642848,-500.0,0.00060273,120]